fUST/lending_fUST_20241119
["ID","MTS","AMOUNT","RATE_DAILY","PERIOD"]
[342566480,1731971365956,-500.0,0.00020129,2]
[342566481,1731971365977,-500.0,0.00020129,2]
[342566482,1731971365997,-500.0,0.00020129,2]
[342566483,1731971366019,-500.0,0.00020129,2]
[342566484,1731971366039,-500.0,0.00020129,2]
[342566485,1731971366062,-500.0,0.00020129,2]
[342566486,1731971366082,-500.0,0.00020129,2]
[342566487,1731971366103,-500.0,0.00020129,2]
[342566488,1731971366124,-500.0,0.00020129,2]
[342566489,1731971366145,-500.0,0.00020129,2]
[342566490,1731971366165,-500.0,0.00020129,2]
[342566491,1731971366185,-500.0,0.00020129,2]
[342566492,1731971366205,-500.0,0.00020129,2]
[342566493,1731971366226,-500.0,0.00020129,2]
[342566494,1731971366248,-500.0,0.00020129,2]
[342566495,1731971366270,-294.97485003,0.00020129,2]
[342566496,1731971366291,-500.0,0.00020129,2]
[342566497,1731971366312,-500.0,0.00020129,2]
[342566498,1731971366333,-500.0,0.00020129,2]
[342566499,1731971366354,-500.0,0.00020129,2]
[342566500,1731971366375,-500.0,0.00020129,2]
[342566501,1731971366396,-500.0,0.00020129,2]
[342566502,1731971366418,-500.0,0.00020129,2]
[342566503,1731971366440,-500.0,0.00020129,2]
[342566504,1731971366461,-500.0,0.00020129,2]
[342566505,1731971366483,-500.0,0.00020129,2]
[342566506,1731971366505,-500.0,0.00020129,2]
[342566507,1731971366526,-500.0,0.00020129,2]
[342566508,1731971366553,-500.0,0.00020129,2]
[342566509,1731971366574,-500.0,0.00020129,2]
[342566510,1731971366596,-500.0,0.00020129,2]
[342566511,1731971366619,-500.0,0.00020129,2]
[342566512,1731971366643,-500.0,0.00020129,2]
[342566513,1731971366664,-500.0,0.00020129,2]
[342566514,1731971366687,-500.0,0.00020129,2]
[342566515,1731971366710,-500.0,0.00020129,2]
[342566516,1731971366731,-500.0,0.00020129,2]
[342566517,1731971366752,-500.0,0.00020129,2]
[342566518,1731971366774,-500.0,0.00020129,2]
[342566519,1731971366795,-500.0,0.00020129,2]
[342566520,1731971366817,-500.0,0.00020129,2]
[342566521,1731971366837,-500.0,0.00020129,2]
[342566522,1731971366857,-500.0,0.00020129,2]
[342566523,1731971366878,-500.0,0.00020129,2]
[342566524,1731971366900,-500.0,0.00020129,2]
[342566525,1731971366920,-500.0,0.00020129,2]
[342566526,1731971366941,-500.0,0.00020129,2]
[342566527,1731971366962,-500.0,0.00020129,2]
[342566528,1731971366984,-500.0,0.00020129,2]
[342566529,1731971367005,-500.0,0.00020129,2]
[342566530,1731971367026,-500.0,0.00020129,2]
[342566531,1731971367046,-500.0,0.00020129,2]
[342566532,1731971367067,-500.0,0.00020129,2]
[342566533,1731971367087,-500.0,0.00020129,2]
[342566534,1731971367108,-500.0,0.00020129,2]
[342566535,1731971367128,-500.0,0.00020129,2]
[342566536,1731971367148,-500.0,0.00020129,2]
[342566537,1731971367170,-500.0,0.00020129,2]
[342566538,1731971367193,-500.0,0.00020129,2]
[342566539,1731971367216,-500.0,0.00020129,2]
[342566540,1731971367239,-500.0,0.00020129,2]
[342566541,1731971367262,-500.0,0.00020129,2]
[342566542,1731971367283,-500.0,0.00020129,2]
[342566543,1731971367304,-500.0,0.00020129,2]
[342566544,1731971367324,-500.0,0.00020129,2]
[342566545,1731971367344,-500.0,0.00020129,2]
[342566546,1731971367365,-500.0,0.00020129,2]
[342566547,1731971367481,-500.0,0.00020129,2]
[342566548,1731971367526,-500.0,0.00020129,2]
[342566549,1731971367555,-500.0,0.00020129,2]
[342566550,1731971367576,-500.0,0.00020129,2]
[342566551,1731971367599,-118.26627286,0.00020129,2]
[342566598,1731971432701,-7015.625,0.0002,2]
[342566599,1731971432710,-300.0,0.00020128,2]
[342566600,1731971432720,-300.0,0.00020128,2]
[342566601,1731971432731,-167.07733483,0.00020129,2]
[342566602,1731971432744,-39.46963969,0.00020129,2]
[342566603,1731971432753,-500.0,0.00020129,2]
[342566604,1731971432763,-500.0,0.00020129,2]
[342566605,1731971432773,-500.0,0.00020129,2]
[342566606,1731971432782,-500.0,0.00020129,2]
[342566607,1731971432793,-500.0,0.00020129,2]
[342566608,1731971432803,-500.0,0.00020129,2]
[342566609,1731971432812,-500.0,0.00020129,2]
[342566610,1731971432822,-500.0,0.00020129,2]
[342566611,1731971432831,-65.04936031,0.00020129,2]
[342566679,1731971438468,-234.58889286,0.00020128,2]
[342566681,1731971438478,-500.0,0.00020128,2]
[342566683,1731971438487,-500.0,0.00020128,2]
[342566685,1731971438497,-500.0,0.00020128,2]
[342566687,1731971438507,-500.0,0.00020128,2]
[342566688,1731971438517,-614.17769685,0.00020128,2]
[342566690,1731971438527,-500.0,0.00020128,2]
[342566692,1731971438537,-500.0,0.00020128,2]
[342566694,1731971438546,-500.0,0.00020128,2]
[342566696,1731971438560,-500.0,0.00020128,2]
[342566698,1731971438570,-500.0,0.00020128,2]
[342566700,1731971438580,-500.0,0.00020128,2]
[342566702,1731971438590,-500.0,0.00020128,2]
[342566704,1731971438601,-500.0,0.00020128,2]
[342566706,1731971438613,-500.0,0.00020128,2]
[342566709,1731971438623,-500.0,0.00020128,2]
[342566711,1731971438633,-500.0,0.00020128,2]
[342566713,1731971438643,-500.0,0.00020128,2]
[342566715,1731971438652,-500.0,0.00020128,2]
[342566717,1731971438662,-500.0,0.00020128,2]
[342566718,1731971438671,-275.05510898,0.00020128,2]
[342566721,1731971438681,-500.0,0.00020128,2]
[342566723,1731971438691,-500.0,0.00020128,2]
[342566725,1731971438701,-500.0,0.00020128,2]
[342566727,1731971438711,-500.0,0.00020128,2]
[342566729,1731971438720,-500.0,0.00020128,2]
[342566731,1731971438730,-500.0,0.00020128,2]
[342566733,1731971438740,-500.0,0.00020128,2]
[342566734,1731971438750,-500.0,0.00020128,2]
[342566737,1731971438761,-500.0,0.00020128,2]
[342566739,1731971438770,-500.0,0.00020128,2]
[342566740,1731971438780,-500.0,0.00020128,2]
[342566743,1731971438791,-500.0,0.00020128,2]
[342566745,1731971438800,-500.0,0.00020128,2]
[342566747,1731971438811,-500.0,0.00020128,2]
[342566749,1731971438821,-500.0,0.00020128,2]
[342566751,1731971438830,-500.0,0.00020128,2]
[342566753,1731971438840,-500.0,0.00020128,2]
[342566755,1731971438853,-500.0,0.00020128,2]
[342566757,1731971438864,-500.0,0.00020128,2]
[342566759,1731971438874,-500.0,0.00020128,2]
[342566761,1731971438884,-500.0,0.00020128,2]
[342566763,1731971438894,-500.0,0.00020128,2]
[342566765,1731971438904,-500.0,0.00020128,2]
[342566767,1731971438914,-500.0,0.00020128,2]
[342566769,1731971438923,-500.0,0.00020128,2]
[342566771,1731971438933,-500.0,0.00020128,2]
[342566773,1731971438943,-500.0,0.00020128,2]
[342566775,1731971438952,-500.0,0.00020128,2]
[342566777,1731971438962,-500.0,0.00020128,2]
[342566779,1731971438972,-500.0,0.00020128,2]
[342566781,1731971438981,-500.0,0.00020128,2]
[342566783,1731971438991,-500.0,0.00020128,2]
[342566785,1731971439000,-500.0,0.00020128,2]
[342566787,1731971439009,-500.0,0.00020128,2]
[342566789,1731971439018,-500.0,0.00020128,2]
[342566791,1731971439028,-500.0,0.00020128,2]
[342566793,1731971439037,-500.0,0.00020128,2]
[342566795,1731971439047,-500.0,0.00020128,2]
[342566797,1731971439056,-500.0,0.00020128,2]
[342566799,1731971439066,-500.0,0.00020128,2]
[342566801,1731971439075,-500.0,0.00020128,2]
[342566803,1731971439085,-650.0,0.00020128,2]
[342566805,1731971439094,-500.0,0.00020128,2]
[342566807,1731971439104,-500.0,0.00020128,2]
[342566809,1731971439114,-500.0,0.00020128,2]
[342566811,1731971439123,-500.0,0.00020128,2]
[342566813,1731971439132,-500.0,0.00020128,2]
[342566815,1731971439143,-500.0,0.00020128,2]
[342566817,1731971439152,-500.0,0.00020128,2]
[342566819,1731971439162,-500.0,0.00020128,2]
[342566821,1731971439172,-500.0,0.00020128,2]
[342566823,1731971439182,-500.0,0.00020128,2]
[342566825,1731971439191,-500.0,0.00020128,2]
[342566827,1731971439201,-500.0,0.00020128,2]
[342566829,1731971439211,-500.0,0.00020128,2]
[342566831,1731971439221,-500.0,0.00020128,2]
[342566833,1731971439230,-500.0,0.00020128,2]
[342566835,1731971439240,-500.0,0.00020128,2]
[342566837,1731971439249,-500.0,0.00020128,2]
[342566839,1731971439258,-500.0,0.00020128,2]
[342566842,1731971439268,-175.961081,0.00020132,2]
[342566844,1731971439278,-175.961081,0.00020132,2]
[342566846,1731971439288,-634.754391,0.00020132,2]
[342566848,1731971439296,-634.754391,0.00020132,2]
[342566849,1731971439306,-151.0,0.00020132,2]
[342566852,1731971439316,-151.0,0.00020132,2]
[342566854,1731971439325,-23924.461833,0.00020132,2]
[342566856,1731971439335,-500.0,0.00020173,2]
[342566858,1731971439344,-500.0,0.00020173,2]
[342566860,1731971439354,-162.79211356,0.00020173,2]
[342566862,1731971439365,-500.0,0.00020173,2]
[342566864,1731971439376,-500.0,0.00020173,2]
[342566866,1731971439386,-321.68736416,0.00020173,2]
[342566868,1731971439396,-500.0,0.00020173,2]
[342566870,1731971439406,-500.0,0.00020173,2]
[342566872,1731971439416,-628.09039988,0.00020173,2]
[342566874,1731971439426,-500.0,0.00020173,2]
[342566876,1731971439436,-509.6,0.00020456,2]
[342566878,1731971439446,-151.0,0.00020495,2]
[342566880,1731971439455,-154.32461,0.00020495,2]
[342566882,1731971439465,-154.32461,0.00020495,2]
[342566884,1731971439475,-387.87693,0.00020495,2]
[342566886,1731971439484,-387.87693,0.00020495,2]
[342566888,1731971439494,-3162.302482,0.00020495,2]
[342566890,1731971439504,-3162.302482,0.00020495,2]
[342566892,1731971439514,-151.0,0.00020495,2]
[342566894,1731971439524,-151.0,0.00020495,2]
[342566896,1731971439534,-171.657385,0.00020495,2]
[342566898,1731971439543,-1504.664541,0.00020495,2]
[342566900,1731971439555,-1188.933796,0.00020495,2]
[342566902,1731971439564,-467.041447,0.00020495,2]
[342566904,1731971439574,-171.657385,0.00020495,2]
[342566906,1731971439584,-1097.649977,0.00020495,2]
[342566908,1731971439594,-502.406538,0.00020495,2]
[342566910,1731971439606,-157.567142,0.00020495,2]
[342566912,1731971439618,-353.61,0.00020742,2]
[342566915,1731971439628,-1504.664541,0.00020751,2]
[342566917,1731971439639,-1188.933796,0.00020751,2]
[342566918,1731971439648,-467.041447,0.00020751,2]
[342566921,1731971439658,-1097.649977,0.00020751,2]
[342566923,1731971439668,-502.406538,0.00020751,2]
[342566925,1731971439679,-23924.461833,0.00020817,2]
[342566927,1731971439689,-11998.86,0.00021007,2]
[342566929,1731971439699,-500.0,0.00021007,2]
[342566931,1731971439709,-571.49972,0.00021007,2]
[342566933,1731971439718,-571.49972,0.00021007,2]
[342566935,1731971439728,-151.0,0.00021007,2]
[342566937,1731971439738,-1504.664541,0.00021008,2]
[342566939,1731971439748,-1188.933796,0.00021008,2]
[342566941,1731971439757,-467.041447,0.00021008,2]
[342566943,1731971439767,-1097.649977,0.00021008,2]
[342566945,1731971439776,-502.406538,0.00021008,2]
[342566947,1731971439786,-151.0,0.00021008,2]
[342566950,1731971439796,-154.32461,0.00021008,2]
[342566953,1731971439806,-154.32461,0.00021008,2]
[342566955,1731971439816,-387.87693,0.00021008,2]
[342566957,1731971439826,-387.87693,0.00021008,2]
[342566959,1731971439835,-3162.302482,0.00021008,2]
[342566961,1731971439845,-3162.302482,0.00021008,2]
[342566963,1731971439856,-175.961081,0.00021008,2]
[342566965,1731971439866,-175.961081,0.00021008,2]
[342566967,1731971439876,-634.754391,0.00021008,2]
[342566969,1731971439886,-634.754391,0.00021008,2]
[342566971,1731971439896,-151.0,0.00021008,2]
[342566973,1731971439906,-151.0,0.00021008,2]
[342566975,1731971439915,-151.0,0.00021008,2]
[342566977,1731971439925,-1504.664541,0.00021264,2]
[342566979,1731971439934,-1188.933796,0.00021264,2]
[342566981,1731971439944,-467.041447,0.00021264,2]
[342566983,1731971439953,-1097.649977,0.00021264,2]
[342566985,1731971439963,-502.406538,0.00021264,2]
[342566987,1731971439973,-11998.86,0.00021281,2]
[342566989,1731971439983,-500.0,0.00021281,2]
[342566991,1731971439993,-509.6,0.00021325,2]
[342566993,1731971440003,-1755.16,0.0002149,3]
[342566995,1731971440013,-877.58,0.0002149,3]
[342566997,1731971440022,-438.78,0.0002149,3]
[342566999,1731971440032,-438.78,0.0002149,3]
[342567001,1731971440041,-171.657385,0.0002152,2]
[342567003,1731971440051,-1504.664541,0.0002152,2]
[342567005,1731971440061,-1188.933796,0.0002152,2]
[342567007,1731971440071,-467.041447,0.0002152,2]
[342567009,1731971440082,-171.657385,0.0002152,2]
[342567012,1731971440092,-1097.649977,0.0002152,2]
[342567014,1731971440101,-502.406538,0.0002152,2]
[342567015,1731971440112,-1000.0,0.00021542,2]
[342567018,1731971440122,-1000.0,0.00021542,2]
[342567020,1731971440132,-1000.0,0.00021542,2]
[342567022,1731971440142,-11998.86,0.00021555,2]
[342567024,1731971440152,-500.0,0.00021555,2]
[342567026,1731971440162,-571.49972,0.00021555,2]
[342567027,1731971440172,-571.49972,0.00021555,2]
[342567030,1731971440183,-500.0,0.0002164,2]
[342567032,1731971440193,-151.0,0.00021829,2]
[342567035,1731971440202,-154.32461,0.00021829,2]
[342567038,1731971440211,-154.32461,0.00021829,2]
[342567041,1731971440221,-387.87693,0.00021829,2]
[342567043,1731971440231,-387.87693,0.00021829,2]
[342567045,1731971440241,-3162.302482,0.00021829,2]
[342567047,1731971440251,-3162.302482,0.00021829,2]
[342567049,1731971440260,-11998.86,0.00021829,2]
[342567051,1731971440271,-175.961081,0.00021829,2]
[342567053,1731971440280,-175.961081,0.00021829,2]
[342567055,1731971440289,-634.754391,0.00021829,2]
[342567057,1731971440299,-634.754391,0.00021829,2]
[342567059,1731971440309,-151.0,0.00021829,2]
[342567061,1731971440319,-500.0,0.00021829,2]
[342567063,1731971440328,-151.0,0.00021829,2]
[342567065,1731971440338,-151.0,0.00021829,2]
[342567067,1731971440348,-433.47266369,0.0002184,2]
[342567069,1731971440357,-420.0,0.00021915,2]
[342567071,1731971440368,-686.9856508,0.00022,5]
[342567073,1731971440378,-11998.86,0.00022103,2]
[342567075,1731971440388,-500.0,0.00022103,2]
[342567077,1731971440398,-420.0,0.00022141,2]
[342567078,1731971440407,-509.6,0.00022194,3]
[342567079,1731971440418,-11998.86,0.00022377,2]
[342567080,1731971440428,-634.02,0.00022377,2]
[342567081,1731971440438,-11998.86,0.00022651,2]
[342567082,1731971440448,-571.49972,0.00022651,7]
[342567083,1731971440458,-571.49972,0.00022651,7]
[342567084,1731971440468,-263.483793,0.00022925,7]
[342567085,1731971440478,-154.32461,0.00022925,7]
[342567086,1731971440487,-154.32461,0.00022925,7]
[342567087,1731971440497,-387.87693,0.00022925,7]
[342567088,1731971440507,-387.87693,0.00022925,7]
[342567089,1731971440516,-3162.302482,0.00022925,7]
[342567090,1731971440526,-3162.302482,0.00022925,7]
[342567091,1731971440536,-11998.86,0.00022925,2]
[342567092,1731971440546,-175.961081,0.00022925,7]
[342567093,1731971440559,-175.961081,0.00022925,7]
[342567094,1731971440568,-634.754391,0.00022925,7]
[342567095,1731971440578,-634.754391,0.00022925,7]
[342567096,1731971440588,-151.0,0.00022925,7]
[342567097,1731971440597,-151.0,0.00022925,7]
[342567098,1731971440608,-151.0,0.00022925,7]
[342567099,1731971440619,-316.17363318,0.00022932,2]
[342567100,1731971440629,-1000.0,0.0002301,2]
[342567102,1731971440639,-203.0552,0.00023062,7]
[342567104,1731971440648,-203.0552,0.00023062,7]
[342567106,1731971440658,-151.0,0.00023062,7]
[342567108,1731971440668,-1057.075244,0.00023062,7]
[342567110,1731971440677,-1057.075244,0.00023062,7]
[342567112,1731971440688,-765.548955,0.00023062,7]
[342567114,1731971440697,-765.548955,0.00023062,7]
[342567116,1731971440707,-626.784621,0.00023062,7]
[342567118,1731971440717,-626.784621,0.00023062,7]
[342567120,1731971440727,-509.6,0.00023063,3]
[342567122,1731971440737,-11998.86,0.00023199,2]
[342567124,1731971440747,-353.61,0.00023332,2]
[342567127,1731971440756,-15832.3297273,0.00023342,2]
[342567129,1731971440767,-571.49972,0.00023342,7]
[342567131,1731971440777,-571.49972,0.00023342,7]
[342567132,1731971440786,-150.04362,0.000234,2]
[342567135,1731971440796,-452.50595125,0.00023416,2]
[342567137,1731971440806,-11998.86,0.00023473,2]
[342567139,1731971440816,-203.0552,0.00023747,7]
[342567141,1731971440826,-203.0552,0.00023747,7]
[342567143,1731971440835,-154.32461,0.00023747,7]
[342567145,1731971440845,-154.32461,0.00023747,7]
[342567156,1731971440946,-151.0,0.00023747,7]
[342567158,1731971440956,-387.87693,0.00023747,7]
[342567160,1731971440966,-387.87693,0.00023747,7]
[342567162,1731971440976,-3162.302482,0.00023747,7]
[342567164,1731971440987,-3162.302482,0.00023747,7]
[342567166,1731971440996,-1057.075244,0.00023747,7]
[342567168,1731971441006,-1057.075244,0.00023747,7]
[342567170,1731971441016,-765.548955,0.00023747,7]
[342567172,1731971441026,-765.548955,0.00023747,7]
[342567174,1731971441036,-11998.86,0.00023747,2]
[342567177,1731971441047,-175.961081,0.00023747,7]
[342567179,1731971441056,-175.961081,0.00023747,7]
[342567181,1731971441066,-634.754391,0.00023747,7]
[342567183,1731971441076,-634.754391,0.00023747,7]
[342567184,1731971441085,-151.0,0.00023747,7]
[342567187,1731971441095,-626.784621,0.00023747,7]
[342567189,1731971441105,-626.784621,0.00023747,7]
[342567191,1731971441115,-151.0,0.00023747,7]
[342567193,1731971441125,-254.35804,0.00023747,7]
[342567195,1731971441140,-587.0,0.0002386,2]
[342567197,1731971441151,-509.6,0.00023933,4]
[342567199,1731971441160,-255.78,0.00024,2]
[342567201,1731971441170,-11998.86,0.00024021,2]
[342567203,1731971441179,-571.49972,0.00024021,7]
[342567205,1731971441188,-571.49972,0.00024021,7]
[342567207,1731971441198,-177.61,0.0002403,5]
[342567209,1731971441208,-1500.0,0.00024047,2]
[342567211,1731971441217,-1613.59852798,0.00024047,2]
[342567213,1731971441226,-1500.0,0.00024047,2]
[342567215,1731971441235,-861.0,0.00024048,15]
[342567217,1731971441245,-154.293298,0.00024055,2]
[342567219,1731971441255,-153.0000001,0.00024055,2]
[342567221,1731971441264,-153.0,0.00024055,2]
[342567223,1731971441274,-153.0,0.00024055,2]
[342567225,1731971441283,-153.0,0.00024055,2]
[342567227,1731971441293,-310.30868166,0.00024079,2]
[342567229,1731971441302,-430.4646603,0.00024192,2]
[342567231,1731971441312,-424.8326851,0.00024192,2]
[342567233,1731971441322,-407.8445341,0.00024192,2]
[342567235,1731971441331,-304.267258,0.00024192,2]
[342567237,1731971441340,-150.112233,0.000242,7]
[342567239,1731971441350,-11998.86,0.00024295,2]
[342567241,1731971441359,-587.0,0.00024355,2]
[342567243,1731971441371,-509.69685159,0.00024451,2]
[342567245,1731971441380,-353.61,0.0002454,2]
[342567247,1731971441390,-203.0552,0.00024549,7]
[342567249,1731971441399,-203.0552,0.00024549,7]
[342567251,1731971441409,-203.0552,0.00024549,7]
[342567253,1731971441419,-203.0552,0.00024549,7]
[342567255,1731971441428,-203.0552,0.00024549,7]
[342567257,1731971441438,-203.0552,0.00024549,7]
[342567259,1731971441447,-151.0,0.00024549,7]
[342567261,1731971441456,-151.0,0.00024549,7]
[342567263,1731971441466,-151.0,0.00024549,7]
[342567265,1731971441476,-1057.075244,0.00024549,7]
[342567267,1731971441486,-1057.075244,0.00024549,7]
[342567269,1731971441496,-1057.075244,0.00024549,7]
[342567271,1731971441506,-1057.075244,0.00024549,7]
[342567273,1731971441515,-1057.075244,0.00024549,7]
[342567275,1731971441524,-1057.075244,0.00024549,7]
[342567277,1731971441534,-765.548955,0.00024549,7]
[342567279,1731971441543,-765.548955,0.00024549,7]
[342567281,1731971441553,-765.548955,0.00024549,7]
[342567283,1731971441566,-765.548955,0.00024549,7]
[342567285,1731971441575,-765.548955,0.00024549,7]
[342567287,1731971441585,-765.548955,0.00024549,7]
[342567289,1731971441595,-626.784621,0.00024549,7]
[342567291,1731971441605,-626.784621,0.00024549,7]
[342567293,1731971441617,-626.784621,0.00024549,7]
[342567295,1731971441627,-626.784621,0.00024549,7]
[342567297,1731971441637,-626.784621,0.00024549,7]
[342567299,1731971441647,-626.784621,0.00024549,7]
[342567301,1731971441657,-37455.4938378,0.00024551,2]
[342567303,1731971441666,-1074.163953,0.00024551,7]
[342567305,1731971441676,-1074.163953,0.00024551,7]
[342567307,1731971441685,-151.0,0.00024551,7]
[342567309,1731971441695,-154.32461,0.00024551,7]
[342567311,1731971441704,-154.32461,0.00024551,7]
[342567313,1731971441715,-387.87693,0.00024551,7]
[342567315,1731971441725,-387.87693,0.00024551,7]
[342567317,1731971441735,-3162.302482,0.00024551,7]
[342567319,1731971441744,-3162.302482,0.00024551,7]
[342567321,1731971441754,-623.44471355,0.00024551,2]
[342567323,1731971441763,-175.961081,0.00024551,7]
[342567325,1731971441773,-175.961081,0.00024551,7]
[342567327,1731971441782,-634.754391,0.00024551,7]
[342567329,1731971441792,-634.754391,0.00024551,7]
[342567331,1731971441802,-151.0,0.00024551,7]
[342567333,1731971441811,-571.49972,0.00024551,7]
[342567335,1731971441821,-571.49972,0.00024551,7]
[342567337,1731971441830,-151.0,0.00024551,7]
[342567339,1731971441840,-203.0552,0.00024569,7]
[342567341,1731971441850,-203.0552,0.00024569,7]
[342567343,1731971441860,-151.0,0.00024569,7]
[342567345,1731971441871,-1057.075244,0.00024569,7]
[342567347,1731971441881,-1057.075244,0.00024569,7]
[342567349,1731971441890,-765.548955,0.00024569,7]
[342567351,1731971441900,-765.548955,0.00024569,7]
[342567353,1731971441911,-11998.86,0.00024569,2]
[342567355,1731971441920,-626.784621,0.00024569,7]
[342567357,1731971441930,-626.784621,0.00024569,7]
[342567359,1731971441939,-500.0,0.00024573,2]
[342567361,1731971441949,-500.0,0.00024573,2]
[342567363,1731971441958,-500.0,0.00024573,2]
[342567365,1731971441968,-273.24385793,0.00024573,2]
[342567367,1731971441977,-500.0,0.00024573,2]
[342567369,1731971441987,-606.80220806,0.00024573,2]
[342567371,1731971441997,-500.0,0.00024573,2]
[342567373,1731971442007,-500.0,0.00024573,2]
[342567375,1731971442017,-500.0,0.00024573,2]
[342567377,1731971442028,-508.11648938,0.00024573,2]
[342567380,1731971442038,-179.2618159,0.00024573,2]
[342567382,1731971442048,-500.0,0.00024573,2]
[342567384,1731971442058,-258.69919818,0.00024573,2]
[342567386,1731971442067,-305.89108891,0.00024573,2]
[342567388,1731971442077,-500.0,0.00024573,2]
[342567390,1731971442086,-500.0,0.00024573,2]
[342567392,1731971442096,-500.0,0.00024573,2]
[342567394,1731971442107,-502.91822303,0.00024573,2]
[342567396,1731971442121,-320.3256421,0.00024573,2]
[342567398,1731971442131,-623.44471354,0.0002459,2]
[342567400,1731971442140,-623.44471354,0.00024629,2]
[342567402,1731971442149,-753.491548,0.00024638,7]
[342567404,1731971442158,-753.491548,0.00024638,7]
[342567406,1731971442168,-151.0,0.00024638,7]
[342567408,1731971442178,-1773.621589,0.00024638,7]
[342567410,1731971442187,-1773.621589,0.00024638,7]
[342567412,1731971442196,-151.0,0.00024638,7]
[342567414,1731971442206,-643.275106,0.00024648,7]
[342567416,1731971442215,-643.275106,0.00024648,7]
[342567418,1731971442225,-151.0,0.00024648,7]
[342567420,1731971442235,-151.0,0.00024648,7]
[342567422,1731971442244,-151.0,0.00024648,7]
[342567424,1731971442254,-500.0,0.00024649,2]
[342567426,1731971442263,-548888.70605488,0.00024651,15]
[342567428,1731971442273,-151.0,0.00024651,7]
[342567430,1731971442282,-151.0,0.00024651,7]
[342567432,1731971442292,-151.0,0.00024651,7]
[342567434,1731971442301,-1383.625761,0.00024651,7]
[342567436,1731971442311,-1383.625761,0.00024651,7]
[342567438,1731971442321,-164.672076,0.00024651,7]
[342567440,1731971442330,-164.672076,0.00024651,7]
[342567442,1731971442340,-255.743703,0.00024651,7]
[342567444,1731971442349,-643.275106,0.00024651,7]
[342567446,1731971442359,-643.275106,0.00024651,7]
[342567448,1731971442372,-753.491548,0.00024651,7]
[342567450,1731971442382,-753.491548,0.00024651,7]
[342567452,1731971442394,-152.528245,0.00024651,7]
[342567454,1731971442403,-151.0,0.00024651,7]
[342567456,1731971442413,-151.0,0.00024651,7]
[342567458,1731971442422,-1773.621589,0.00024651,7]
[342567460,1731971442432,-1773.621589,0.00024651,7]
[342567462,1731971442442,-3833.438324,0.00024651,7]
[342567464,1731971442451,-151.0,0.00024651,7]
[342567466,1731971442462,-3833.438324,0.00024651,7]
[342567468,1731971442471,-151.680813,0.00024651,7]
[342567470,1731971442481,-151.0,0.00024651,7]
[342567472,1731971442491,-1074.163953,0.00024651,7]
[342567474,1731971442500,-1074.163953,0.00024651,7]
[342567476,1731971442511,-260.238351,0.00024651,7]
[342567478,1731971442520,-1082.546549,0.00024651,7]
[342567480,1731971442529,-1082.546549,0.00024651,7]
[342567482,1731971442539,-203.0552,0.00024651,7]
[342567484,1731971442548,-151.0,0.00024651,7]
[342567486,1731971442562,-203.0552,0.00024651,7]
[342567488,1731971442571,-154.32461,0.00024651,7]
[342567490,1731971442581,-154.32461,0.00024651,7]
[342567492,1731971442590,-151.0,0.00024651,7]
[342567494,1731971442601,-387.87693,0.00024651,7]
[342567496,1731971442611,-387.87693,0.00024651,7]
[342567498,1731971442623,-3162.302482,0.00024651,7]
[342567500,1731971442633,-3162.302482,0.00024651,7]
[342567502,1731971442642,-1057.075244,0.00024651,7]